Cogmind - Beta 13 @@@ ROGUE MODE // 2024.04.15 @ 12:36:08 Player: jupart Result: Destroyed by L-31 Rogue with Katana Performance ------------- Evolutions (2) 1000 Regions Visited (4) 800 Robots Destroyed (72) 360 Value Destroyed (2340) 2340 Prototype IDs (6) 120 Alien Tech Used (0) 0 Bonus (798) 798 TOTAL SCORE: 5418 Bonus ------- High Alert Combat Kills 98 Entered Garrisons 200 Used RIF Installer 500 Cogmind --------- Core Integrity 0/550 Matter 300/300 Energy 100/100 System Corruption 30% Temperature Cool (0) Movement Core (50) Location -8/Garrison Parts ------- > --- POWER (2) -------- (None) > --- PROPULSION (2) --- (None) > --- UTILITY (4) ------ (None) > --- WEAPON (3) ------- (None) > --- INVENTORY (5) ---- Advanced Beam Rifle Heavy Particle Cannon Minigun Peak State ------------ > --- POWER ------------ Improved Ion Engine Improved Ion Engine > --- PROPULSION ------- Light Treads Advanced Treads > --- UTILITY ---------- Medium Storage Unit Heavy Armor Plating Tractor Beam > --- WEAPON ----------- Precision Beam Rifle Advanced Beam Rifle Heavy Hammer > --- INVENTORY -------- Ion Engine Light Treads Light Treads Light Treads Signal Interpreter Beam Rifle Heavy Particle Cannon Minigun Rocket Launcher Mini Grenade Launcher [Rating: 27] Favorites ----------- Power Improved Ion Engine Engine Improved Ion Engine Power Core Light Nuclear Core Propulsion Light Treads Treads Light Treads Wheel Compact Wheel Utility Medium Storage Unit Device Tractor Beam Storage Medium Storage Unit Processor Signal Interpreter Hackware Relay Coupler [Swarmer] Protection Heavy Armor Plating Weapon Heavy Hammer Energy Gun Improved Medium Laser Energy Cannon Heavy Particle Cannon Ballistic Gun Heavy Assault Rifle Ballistic Cannon Improved Light Cannon Launcher Mini Grenade Launcher Impact Weapon Heavy Hammer Build | -11 -10 -9 -8 -8 ------- Run | Yrd Mat Mat Mat Gar Slots Evolved 4 | . . 2 2 . Power 1 | . . 1 . . Propulsion . | . . . . . Utility 2 | . . 1 1 . Weapon 1 | . . . 1 . Parts Attached 78 | 6 11 35 11 15 Power 16 | 1 2 7 1 5 Engine 15 | 1 2 7 1 4 Core 1 | . . . . 1 Reactor . | . . . . . Propulsion 19 | 2 3 9 2 3 Treads 15 | . 3 7 2 3 Leg . | . . . . . Wheel 4 | 2 . 2 . . Hover . | . . . . . Flight . | . . . . . Utility 15 | 1 2 6 2 4 Device 8 | . 1 6 . 1 Storage 2 | 1 1 . . . Processor 2 | . . . 1 1 Hackware 2 | . . . . 2 Protection 1 | . . . 1 . Artifact . | . . . . . Weapon 28 | 2 4 13 6 3 Energy Gun 11 | 2 1 4 3 1 Energy Cannon 1 | . . 1 . . Ballistic Gun 4 | . . 3 1 . Ballistic Cannon 2 | . 1 1 . . Launcher 8 | . 1 4 1 2 Special Weapon . | . . . . . Impact Weapon 2 | . 1 . 1 . Slashing Weapon . | . . . . . Piercing Weapon . | . . . . . Special Melee Weapon . | . . . . . Unidentified Prototypes 4 | . . 2 2 . Parts Lost 34 | . . 12 . 22 Power 8 | . . 3 . 5 Propulsion 9 | . . 4 . 5 Utility 10 | . . 3 . 7 Weapon 7 | . . 2 . 5 Highest Loss Streak 10 | . . 4 . 10 To Critical Strikes 1 | . . . . 1 Average Slot Usage (%) 92 | . 94 95 97 83 Engine 16 | . 14 21 18 12 Core 1 | . . . . 4 Treads 18 | . 26 15 18 16 Wheel 2 | . 1 6 . . Device 14 | . 8 18 15 12 Storage 10 | . 14 11 9 8 Processor 1 | . . . 6 4 Energy Gun 9 | . 9 7 14 9 Energy Cannon 1 | . . 2 2 . Ballistic Gun 3 | . . 8 6 . Ballistic Cannon 3 | . 13 . . . Launcher 1 | . . . 1 2 Impact Weapon 4 | . 4 1 2 8 Naked Turns 16 | . . . . 16 Heaviest Build 49 | 11 25 35 48 49 Greatest Support 42 | 26 40 40 42 42 Greatest Overweight (x) 5 | . . 1 1 5 Average Overweight (x) . | . . . . . Largest Inventory Capacity 10 | 8 10 10 10 10 Average Capacity 9 | 6 9 10 10 9 Most Carried 10 | 6 10 10 10 10 Average Carried 8 | 3 8 8 9 6 Final Capacity 10 | 8 10 10 10 5 Final Carried 10 | 6 10 9 10 3 Class Distribution -------------------- 60% | Mutant 32% | Scavenger-Mutant 7% | Scavenger-Skirmisher Dominant Class ---------------- Mutant | -10/Materials Mutant | -9/Materials Scavenger-Skirmisher | -8/Materials Scavenger-Mutant | -8/Garrison Resources | -11 -10 -9 -8 -8 ----------- Run | Yrd Mat Mat Mat Gar Matter Collected 1589 | 172 330 649 193 245 Remotely 791 | . . 373 193 225 Salvage Created 2117 | . 147 1333 247 390 Parts 141 | . 10 85 16 30 Haulers Intercepted 1 | . . 1 . . Recyclers Shooed 1 | . . . 1 . Parts Field Recycled . | . . . . . Retrieved Matter . | . . . . . Parts Self-Destructed . | . . . . . Prevented . | . . . . . Kills | -11 -10 -9 -8 -8 ------- Run | Yrd Mat Mat Mat Gar Combat Hostiles Destroyed 61 | . 9 27 8 17 Melee 8 | . . 2 . 6 Guns 21 | . 1 16 4 . Cannons 5 | . 2 2 1 . AOE 22 | . 6 5 3 8 Classes Destroyed 9 | . 3 6 . . Builder 2 | . . 1 1 . Hauler 1 | . . 1 . . Recycler 4 | . . 4 . . Mechanic 1 | . . 1 . . Operator 1 | . . 1 . . Watcher 2 | . 1 1 . . Swarmer 23 | . 6 6 3 8 Grunt 26 | . 3 14 3 6 Sentry 12 | . . 7 2 3 Best Kill Streak 6 | . 6 6 5 4 Combat Bots Only 6 | . 6 4 4 4 Max Kills in Single Turn 4 | . 4 3 3 2 Gunslinging . | . . . . . Exploded 4 | . 4 2 3 2 Melee 1 | . . 1 . 1 Uniques/NPCs Destroyed . | . . . . . Combat | -11 -10 -9 -8 -8 -------- Run | Yrd Mat Mat Mat Gar Hostile Shots Fired 433 | . 44 196 34 159 Missed 116 | . 14 56 6 40 Damage Taken 4963 | . 638 1792 413 2120 Core 1044 | . 163 301 102 478 Absorbed by Shields . | . . . . . Core Remaining (%) 52 | 100 34 24 . . Volleys Fired 157 | . 31 98 19 9 Largest 3 | . 2 2 3 2 Hottest 163 | . 79 108 163 94 Shots Fired 261 | . 43 170 38 10 Gun 186 | . 12 140 33 1 Cannon 54 | . 28 23 3 . Launcher 21 | . 3 7 2 9 Special . | . . . . . Kinetic 135 | . 28 91 16 . Thermal 103 | . 12 70 20 1 Explosive 21 | . 3 7 2 9 Electromagnetic 2 | . . 2 . . Robot Hit Streak 17 | . 7 17 7 9 Robot Miss Streak 4 | . 2 4 1 4 Penetration Max . | . . . . . Secondary Targets . | . . . . . Shots Hit Robots 219 | . 19 132 27 41 Core Hits 103 | . 12 45 14 32 Critical Kills 3 | . . 2 . 1 Critical Parts Destroyed 9 | . . 5 . 4 Critical Strikes 16 | . . 11 . 5 Burn 3 | . . 3 . . Destroy 2 | . . 2 . . Blast 1 | . . 1 . . Smash 10 | . . 5 . 5 Melee Attacks 85 | . 22 14 . 49 Impact 85 | . 22 14 . 49 Slashing . | . . . . . Piercing . | . . . . . Sneak Attacks 1 | . . 1 . . Combat Hostiles . | . . . . . Follow-up Attacks . | . . . . . Damage Inflicted 5948 | . 636 2652 713 1947 Guns 2137 | . 99 1632 388 18 Cannons 621 | . 187 359 75 . Explosions 1753 | . 350 335 250 818 Melee 1396 | . . 326 . 1070 Ramming 41 | . . . . 41 Kinetic 1315 | . 187 967 161 . Thermal 1402 | . 99 983 302 18 Explosive 1753 | . 350 335 250 818 Electromagnetic 41 | . . 41 . . Impact 1396 | . . 326 . 1070 Slashing . | . . . . . Piercing . | . . . . . Highest Corruption 30 | . 3 . . 30 Average Corruption 3 | . 1 . . 20 Corruption Purged . | . . . . . Corruption Blocked . | . . . . . Effects 7 | . 5 . . 2 Message Errors 1 | . 1 . . . Matter Fused 2 | . 2 . . . Heat Flow Errors 1 | . 1 . . . Energy Discharges 1 | . . . . 1 Parts Fused 1 | . 1 . . . Data Loss (minor) 1 | . . . . 1 Overload Shots . | . . . . . Overflow Damage 487 | . 3 146 40 298 Projectiles . | . . . . . Explosions 124 | . 3 . 40 81 Melee 363 | . . 146 . 217 Knockbacks 8 | . 4 3 . 1 Impact 1 | . . . . 1 Kinetic 7 | . 4 3 . . Secondary . | . . . . . Self-Inflicted Damage 248 | . 34 14 . 200 Shots 9 | . 1 2 . 6 Rammed 21 | . . . . 21 Targets Rammed 21 | . . . . 21 Kicked . | . . . . . Crushed . | . . . . . Highest Temperature 343 | . 276 308 343 90 Average Temperature 86 | . 120 66 163 29 Received Heat Transfer 1446 | . 78 675 198 495 Effects 1 | . . . 1 . Energy Bleed 1 | . . . 1 . Siege Activations . | . . . . . Robots Corrupted . | . . . . . Combat Hostiles . | . . . . . Parts Fried 6 | . . 4 . 2 Impact Corruptions 15 | . . 6 . 9 Robots Melted . | . . . . . Combat Hostiles . | . . . . . Parts Melted 1 | . . 1 . . Heat Transferred 3037 | . 225 2183 592 37 Parts Sabotaged . | . . . . . Parts Stolen . | . . . . . Parts Stripped . | . . . . . Power Chain Reactions . | . . . . . Alert | -11 -10 -9 -8 -8 ------- Run | Yrd Mat Mat Mat Gar Peak Influence 649 | . 251 419 301 649 Initial 195 | . . 13 171 195 Average 274 | . 79 291 209 475 Maximum Alert Level 2 | . 1 2 1 2 Low Security (%) 40 | 100 97 16 43 12 Level 1 37 | . 2 78 56 12 Level 2 22 | . . 5 . 74 Level 3 . | . . . . . Level 4 . | . . . . . Level 5 . | . . . . . High Security . | . . . . . Max Security . | . . . . . Squads Dispatched 4 | . 2 2 . . Investigation 1 | . . 1 . . Extermination . | . . . . . Reinforcement 3 | . 2 1 . . Assault . | . . . . . Garrison . | . . . . . Intercept . | . . . . . Searches Triggered . | . . . . . Construction Impeded . | . . . . . Haulers Reinforced . | . . . . . Active Scanning Responses . | . . . . . Cargo Convoy Interrupts . | . . . . . Stealth | -11 -10 -9 -8 -8 --------- Run | Yrd Mat Mat Mat Gar Distress Signals 6 | . . 4 2 . Communications Jammed . | . . . . . Distress Signals . | . . . . . Times Spotted 100 | . 18 43 12 27 Peak Tracking Total 6 | . 6 5 6 5 Tactical Retreats 7 | . . 6 . 1 Traps | -11 -10 -9 -8 -8 ------- Run | Yrd Mat Mat Mat Gar Traps Triggered 6 | . 2 1 . 3 Indirectly . | . . . . . Trap Hack Attempts . | . . . . . Triggered . | . . . . . Disarmed . | . . . . . Reprogrammed . | . . . . . Reused . | . . . . . Traps Extracted . | . . . . . Installed . | . . . . . Triggered . | . . . . . Machines | -11 -10 -9 -8 -8 ---------- Run | Yrd Mat Mat Mat Gar Machines Disabled 6 | . 1 2 1 2 Max in Single Turn 1 | . 1 1 1 1 Garrison Relay 2 | . . . . 2 Machines Repaired . | . . . . . Machines Dismantled . | . . . . . Machines Sabotaged . | . . . . . Overloaded Fab Kills . | . . . . . Hacking | -11 -10 -9 -8 -8 --------- Run | Yrd Mat Mat Mat Gar Machines Accessed 12 | . 3 4 2 3 Terminals 11 | . 3 4 1 3 Fabricators . | . . . . . Repair Stations . | . . . . . Recycling Units . | . . . . . Scanalyzers . | . . . . . Garrison Access 1 | . . . 1 . Total Hacks 27 | . 8 11 4 4 Successful 13 | . 6 4 3 . Failed 14 | . 2 7 1 4 Catastrophic 4 | . . 2 . 2 Database Lockouts . | . . . . . Manual 9 | . 1 7 1 . Terminals 26 | . 8 11 3 4 Fabricators . | . . . . . Repair Stations . | . . . . . Recycling Units . | . . . . . Scanalyzers . | . . . . . Garrison Access 1 | . . . 1 . Terminal Hacks 12 | . 6 4 2 . Record 5 | . 2 2 1 . Prototype ID Bank 1 | . 1 . . . Emergency Access Points 1 | . 1 . . . Terminal Index 1 | . 1 . . . Alert Level 1 | . . 1 . . Unreport Threat 1 | . . . 1 . Locate Traps 1 | . 1 . . . Zone Layout 1 | . . 1 . . Fabricator Hacks . | . . . . . Repair Station Hacks . | . . . . . Recycling Unit Hacks . | . . . . . Scanalyzer . | . . . . . Garrison Access Hacks 1 | . . . 1 . Unlock Access 1 | . . . 1 . Unauthorized Hacks . | . . . . . Terminals . | . . . . . Fabricators . | . . . . . Repair Stations . | . . . . . Recycling Units . | . . . . . Scanalyzers . | . . . . . Garrison Access . | . . . . . Data Cores Recovered . | . . . . . Used . | . . . . . Hacking Detections 8 | . . 4 2 2 Full Trace Events . | . . . . . Feedback Events . | . . . . . Feedback Blocked . | . . . . . Robot Schematics Acquired . | . . . . . Robots Built . | . . . . . Authchips . | . . . . . Time . | . . . . . Total Robot Build Rating . | . . . . . Part Schematics Acquired . | . . . . . Parts Built . | . . . . . Authchips . | . . . . . Time . | . . . . . Total Part Build Rating . | . . . . . Parts Repaired . | . . . . . Time . | . . . . . Parts Recycled . | . . . . . Recycled Matter . | . . . . . Retrieved Matter . | . . . . . Retrieved Components . | . . . . . Parts Scanalyzed . | . . . . . Part Schematics Acquired . | . . . . . Parts Damaged . | . . . . . Bothacking | -11 -10 -9 -8 -8 ------------ Run | Yrd Mat Mat Mat Gar Used RIF Installer 1 | . . . . 1 Robots Hacked . | . . . . . Non-combat . | . . . . . Combat . | . . . . . Robot Hacks Applied . | . . . . . Relay Couplers Released 6 | . . . . 6 Machine Destruction 6 | . . . . 6 Attached 2 | . . . . 2 Fabnet Peak Effective % . | . . . . . Robots Rewired . | . . . . . Allies Hacked . | . . . . . Hacks Repelled . | . . . . . Allies | -11 -10 -9 -8 -8 -------- Run | Yrd Mat Mat Mat Gar Total Allies . | . . . . . Largest Group . | . . . . . Highest-Rated Group . | . . . . . Highest-Rated Ally . | . . . . . Total Orders . | . . . . . Ally Attacks . | . . . . . Total Damage . | . . . . . Kills . | . . . . . Allies Corrupted . | . . . . . Allies Melted . | . . . . . Intel | -11 -10 -9 -8 -8 ------- Run | Yrd Mat Mat Mat Gar Robot Analysis Total . | . . . . . Derelict Logs Recovered . | . . . . . Drone Launches . | . . . . . Drone Recoveries . | . . . . . Exploration | -11 -10 -9 -8 -8 ------------- Run | Yrd Mat Mat Mat Gar Turns Passed 4130 | 50 1078 1491 393 1118 Spaces Moved 1903 | 40 542 642 174 505 Core 6 | 4 . . . 2 Treads 1613 | . 505 431 174 503 Legs . | . . . . . Wheels 284 | 36 37 211 . . Hover . | . . . . . Flight . | . . . . . Fastest Speed 50 | 50 90 105 160 50 Average Speed 156 | 86 155 142 176 176 Slowest Speed 300 | 100 160 240 240 300 Overloaded Moves . | . . . . . Propulsion Burnouts . | . . . . . Robots Hopped . | . . . . . Cave-ins Triggered 1 | . 1 . . . Exploration Rate (%) 46 | 3 77 66 23 65 Regions Visited 4 Branch Regions . Pre-discovered Areas . | . . . . . Known Exits Taken 1 | . . . 1 . Unknown Exits Taken 3 | 1 1 1 . . Scrap Searched . | . . . . . Spaces Dug 15 | . 15 . . . Terrain Destroyed 89 | . 28 29 12 20 Melee 14 | . 14 . . . Projectile 5 | . 2 3 . . AOE 70 | . 12 26 12 20 Terrain Rammed . | . . . . . Walls Destroyed . | . . . . . Machines Disabled . | . . . . . Actions | -11 -10 -9 -8 -8 --------- Run | Yrd Mat Mat Mat Gar Total 2646 | 52 702 1030 231 631 Wait 337 | . 78 209 20 30 Move 1899 | 39 541 641 173 505 Hop . | . . . . . Pick Up 32 | 7 7 15 1 2 Fast Attach 20 | 5 3 7 4 1 Attach 29 | 1 2 13 2 11 Detach 8 | . 3 3 2 . Swap 29 | . 6 15 5 3 Drop 29 | . 9 15 5 . Fire 157 | . 31 98 19 9 Melee 85 | . 22 14 . 49 Ram 16 | . . . . 16 Kick . | . . . . . Crush 5 | . . . . 5 Escape Stasis . | . . . . . Rewire . | . . . . . Trap . | . . . . . Miscellaneous . | . . . . . Route ------- -11/Scrapyard -10/Materials (discovered 4 exits: *Mat x2 / [*Min x2]) -9/Materials (discovered 3 exits: *Mat / [*Min] / [*Sto]) -8/Materials -8/Garrison (discovered 3 exits: [*Mat x3]) History --------- Turn | Location | Event 13 | -11/Scrapyard | Discovered new exit (range 15) 51 | -11/Scrapyard | Entered Materials 146 | -10/Materials | Discovered new exit (range 15) 306 | -10/Materials | Build established: Mutant 461 | -10/Materials | Discovered new exit (range 13) 905 | -10/Materials | Crushed by falling debris 905 | -10/Materials | Core integrity fell below 50% 1062 | -10/Materials | Discovered new exit (range 9) 1105 | -10/Materials | Discovered new exit (range 15) 1129 | -10/Materials | Entered another Materials area 1129 | -9/Materials | Evolved 2 slots: Power x1, Utility x1 1251 | -9/Materials | Discovered new exit (range 13) 1349 | -9/Materials | Discovered new exit (range 9) 1415 | -9/Materials | Lost 3 parts (2n1w) 1627 | -9/Materials | Lost 4 parts (2n2u) 1858 | -9/Materials | Core integrity fell below 50% 2348 | -9/Materials | Build established: Scavenger-Mutant 2545 | -9/Materials | Discovered new exit (range 10) 2620 | -9/Materials | Entered another Materials area 2620 | -8/Materials | Evolved 2 slots: Utility x1, Weapon x1 3011 | -8/Materials | Identified exit to Garrison 3013 | -8/Materials | Entered Garrison 3156 | -8/Garrison | Triggered checkpoint 3263 | -8/Garrison | Triggered checkpoint 3299 | -8/Garrison | Build established: Mutant 3347 | -8/Garrison | Lost 3 parts (1n1u1w) 3434 | -8/Garrison | Discovered new exit (range 8) 3491 | -8/Garrison | Triggered checkpoint 3493 | -8/Garrison | Core integrity fell below 50% 3498 | -8/Garrison | Garrison Relay disabled 3538 | -8/Garrison | Triggered checkpoint 3568 | -8/Garrison | Discovered new exit (range 5) 3692 | -8/Garrison | Triggered checkpoint 3779 | -8/Garrison | Discovered new exit (range 12) 3829 | -8/Garrison | Build established: Scavenger-Mutant 3922 | -8/Garrison | Triggered checkpoint 3968 | -8/Garrison | Triggered checkpoint 4027 | -8/Garrison | Garrison Relay disabled 4033 | -8/Garrison | Lost 4 parts (1p1n2u) 4056 | -8/Garrison | Triggered checkpoint 4069 | -8/Garrison | Installed Relay Interface Framework 4086 | -8/Garrison | System corruption reached 10% 4115 | -8/Garrison | Core integrity fell below 20% 4131 | -8/Garrison | System corruption reached 30% 4131 | -8/Garrison | Destroyed by L-31 Rogue with Katana Last Messages --------------- 04093_ System corrupted by crushing effect (+3). 04104_ Critical hit (Smash). 04104_ Hvy. Hammer destroyed. 04104_ Lgt. Nuclear Core destroyed. 04104_ System corrupted by crushing effect (+3). 04104_ System corrupted by crushing effect (+4). 04104_ Slammed into B-36 Bruiser. 04107_ Med. Storage Unit destroyed. 04107_ System corrupted by crushing effect (+2). 04107_ Knocked back. 04108_ System corrupted: Energy discharge (-33). 04109_ Slammed into B-36 Bruiser. 04114_ Acquired 10 matter. 04114_ Slammed into B-36 Bruiser. 04115_ Slammed into L-31 Rogue. 04121_ Lgt. Treads destroyed. 04122_ Slammed into L-31 Rogue. 04130_ Destabilizing: System corrupted (+1). 04131_ Slammed into L-31 Rogue. [Achievement: 5k Club] Map ----- +----------------------------------------------------+ | ?????????????????????????????????????????????????? | | ?????????????????????????????????????????????????? | | ?????????????????????????????????????????????????? | | ?????????????????????????????????????????????????? | | ?????????????????????????????????????????????????? | | ?????????????????????????????????????????????????? | | ?????????????????????????????????????????????????? | | ?????????????????????????????????????????????????? | | ?????????????????????????????????????????????????? | | ?????????????????????????????????????????????????? | | ?????????????????????????????????????????????????? | | ?????????????????????????????????????????????????? | | ?????????????????????????????????????????????????? | | ????????????????????#####????????????????????????? | | ????????????????????# #????????????????????????? | | ????????????????????# < #############????????????? | | ????????????????????# #????????????? | | ????????????????????# #????????????? | | ???????????????################### #????????????? | | ???????????????#" "#????????## ## #????????????? | | ???????????????#"%"#???????## # #????????????? | | ???????????????#"%"#???????# #????????????? | | ???????????????#"%"#???????# # # #????????????? | | ???????????????#^%^#???????# # # #????????????? | | ???????????????##%################ ###########??? | | ????????????????#%%%b%%%%@l #??? | | ????????????????# ### ########## #??? | | ????????????????# #?# #????????# ######## #??? | | ??????????????### #?#####????????# #??????# #??? | | ??????????????#"# #??????????????# #??????# #??? | | ??????????????# #??????????????# #??????# #??? | | ??????????????# ! #??????????????# #??????# #??? | | ??????????????# #??????????????# #??????# #### | | ??????????????#"# #??????????????# #??????# ## | | ??????????????### #?#####????????# #?????## ## | | ????????????????# #?#*[ #????????#^ ####### | | ????????????????# ###%%"########## | | ????????????????#% [ | | ????????????????########################### ## | | ????????????????????????????????????????### ##^^ | | ????????????????????????????????????????# | | ????????????????????????????????????????# | | ????????????????????????????????????????# | | ????????????????????????????????????????# | | ????????????????????????????????????????### # | | ????????????????????????????????######### [ ## | | ????????????????????????????????# % * | | ????????????????????????????????# = | | ????????????????????????????????# ####### | | ????????????????????????????????# #???# # # | +----------------------------------------------------+ Best States ------------- Heat Dissipation 50 Energy Generation 21 Energy Capacity 430 Matter Stores 300 Matter Capacity 300 Sight Range 16 Robot Scan Range 14 Terrain Scan Density 10 Armor Coverage 600 Evasion (%) 42 Recoil Reduction 2 Relay Coupler Types 1 Relay Coupler Value 31 Item Schematics ----------------- None Robot Schematics ------------------ None Fabricated ------------ Nothing Alien Tech Used ----------------- None Achievements -------------- 5k Club Loot Pinata System Compromised Unlikely Earthworm Challenges ------------ None Game ------ Seed CoordinationExplosiveSpear Manual? 0 Play Time 00:45:53 Cumulative 0.8 hours Start 2024.04.15 @ 08:29:55 End 2024.04.15 @ 12:36:08 Sessions 5 Manual Loads 0 Difficulty Rogue Special Mode None Game No. 3 Rogue 3 Adventurer 0 Explorer 0 Win Type - Total 0 Types 0/0/0/0/0/0/0/0/0 Lore% 2 Gallery% 9 Achievement% 7 Wizard Run 0 Options --------- Layout 2 ASCII 1 Keyboard 1 Movement Vi Keybinds 0 Fullscreen 0 Font 18/Smallcaps Map View 59x48 Zoom Use 0% Tactical HUD 1 Map Filters NONE Filters NONE Steam 0 RUN: dc5e363a-43fd-4b4b-853e-bb74ad97be75